[Event "Titled Tuesday Blitz February 21 Early 2023"]
[White "Di Nicolantonio, Lucas"]
[Black "Ahmadzada, Ahmad"]
[WhiteFideId "680460"]
[BlackFideId "13413007"]
[WhiteElo "2376"]
[BlackElo "2488"]
[Result "1-0"]
[Round "03"]
[TimeControl "180+2"]
[Date "2023.02.21"]
[WhiteClock "0:00:14"]
[BlackClock "0:00:04"]

1. Nf3 {[%clk 0:03:00]}  c5 {[%clk 0:02:52]} 2. e4 {[%clk 0:03:00]}  a6 {[%clk 0:02:51]} 3. c3 {[%clk 0:03:00]}  e6 {[%clk 0:02:50]} 4. d4 {[%clk 0:03:00]}  d5 {[%clk 0:02:51]} 5. e5 {[%clk 0:03:00]}  Bd7 {[%clk 0:02:50]} 6. a4 {[%clk 0:02:43]}  Nc6 {[%clk 0:02:46]} 7. Bd3 {[%clk 0:02:32]}  Rc8 {[%clk 0:02:40]} 8. O-O {[%clk 0:02:33]}  cxd4 {[%clk 0:02:40]} 9. Re1 {[%clk 0:02:28]}  dxc3 {[%clk 0:02:34]} 10. Nxc3 {[%clk 0:02:28]}  Bb4 {[%clk 0:02:31]} 11. Bc2 {[%clk 0:02:10]}  Nge7 {[%clk 0:02:26]} 12. h4 {[%clk 0:02:07]}  h6 {[%clk 0:02:20]} 13. h5 {[%clk 0:01:50]}  Na5 {[%clk 0:01:51]} 14. Nd4 {[%clk 0:01:44]}  Nec6 {[%clk 0:01:15]} 15. Nxc6 {[%clk 0:01:44]}  Nxc6 {[%clk 0:01:13]} 16. Qg4 {[%clk 0:01:44]}  Kf8 {[%clk 0:01:00]} 17. Bd2 {[%clk 0:01:24]}  d4 {[%clk 0:00:51]} 18. Nb1 {[%clk 0:01:06]}  Bxd2 {[%clk 0:00:49]} 19. Nxd2 {[%clk 0:01:06]}  Qg5 {[%clk 0:00:49]} 20. Qe4 {[%clk 0:00:53]}  Qxd2 {[%clk 0:00:42]} 21. f4 {[%clk 0:00:43]}  Nb4 {[%clk 0:00:33]} 22. Re2 {[%clk 0:00:38]}  Qxe2 {[%clk 0:00:18]} 23. Qxe2 {[%clk 0:00:37]}  Rxc2 {[%clk 0:00:18]} 24. Qe1 {[%clk 0:00:31]}  a5 {[%clk 0:00:16]} 25. Rc1 {[%clk 0:00:30]}  d3 {[%clk 0:00:08]} 26. Rd1 {[%clk 0:00:21]}  Bc6 {[%clk 0:00:08]} 27. Rd2 {[%clk 0:00:21]}  Ke7 {[%clk 0:00:08]} 28. Qh4+ {[%clk 0:00:21]}  Kd7 {[%clk 0:00:06]} 29. Qf2 {[%clk 0:00:22]}  Rxd2 {[%clk 0:00:03]} 30. Qxd2 {[%clk 0:00:22]}  Rc8 {[%clk 0:00:03]} 31. f5 {[%clk 0:00:20]}  Bd5 {[%clk 0:00:04]} 32. fxe6+ {[%clk 0:00:16]}  Bxe6 {[%clk 0:00:05]} 33. Qe3 {[%clk 0:00:14]}  Rc2 {[%clk 0:00:04]} 34. Qd4+ {[%clk 0:00:14]}  Kc6 {[%clk 0:00:04]} 35. Qd6# {[%clk 0:00:14]} 1-0


[Site "https://www.chess.com"]

[Event "Titled Tuesday Blitz February 21 Early 2023"]
[White "Parpiev, Isaak"]
[Black "Boruchovsky, Avital"]
[WhiteFideId "34281576"]
[BlackFideId "2800055"]
[WhiteElo "2167"]
[BlackElo "2539"]
[Result "0-1"]
[Round "03"]
[TimeControl "180+2"]
[Date "2023.02.21"]
[WhiteClock "0:00:02"]
[BlackClock "0:00:05"]

1. e4 {[%clk 0:03:00]}  e5 {[%clk 0:02:56]} 2. Nf3 {[%clk 0:03:00]}  Nc6 {[%clk 0:02:56]} 3. Bc4 {[%clk 0:02:56]}  Nf6 {[%clk 0:02:56]} 4. d3 {[%clk 0:02:56]}  Be7 {[%clk 0:02:55]} 5. O-O {[%clk 0:02:55]}  O-O {[%clk 0:02:53]} 6. c3 {[%clk 0:02:55]}  d5 {[%clk 0:02:50]} 7. exd5 {[%clk 0:02:54]}  Nxd5 {[%clk 0:02:50]} 8. Re1 {[%clk 0:02:53]}  Nb6 {[%clk 0:02:50]} 9. Bb3 {[%clk 0:02:51]}  Bg4 {[%clk 0:02:47]} 10. h3 {[%clk 0:02:51]}  Bh5 {[%clk 0:02:47]} 11. a4 {[%clk 0:02:37]}  a6 {[%clk 0:02:26]} 12. a5 {[%clk 0:02:36]}  Nd7 {[%clk 0:02:26]} 13. Bc2 {[%clk 0:02:23]}  f5 {[%clk 0:02:15]} 14. Nbd2 {[%clk 0:02:01]}  Bf6 {[%clk 0:02:13]} 15. Nf1 {[%clk 0:01:56]}  Nc5 {[%clk 0:02:08]} 16. Ng3 {[%clk 0:01:54]}  Bg6 {[%clk 0:02:07]} 17. b4 {[%clk 0:01:48]}  Nd7 {[%clk 0:01:54]} 18. Ba3 {[%clk 0:01:31]}  Re8 {[%clk 0:01:50]} 19. Bb2 {[%clk 0:01:29]}  b5 {[%clk 0:01:45]} 20. axb6 {[%clk 0:01:19]}  Nxb6 {[%clk 0:01:43]} 21. Qb1 {[%clk 0:00:57]}  Kh8 {[%clk 0:01:40]} 22. Ra3 {[%clk 0:00:49]}  Nd5 {[%clk 0:01:33]} 23. Qa1 {[%clk 0:00:44]}  Qc8 {[%clk 0:01:23]} 24. Ba4 {[%clk 0:00:38]}  Qb7 {[%clk 0:01:10]} 25. c4 {[%clk 0:00:32]}  Ndxb4 {[%clk 0:01:03]} 26. Nxe5 {[%clk 0:00:32]}  Bxe5 {[%clk 0:00:39]} 27. Bxe5 {[%clk 0:00:33]}  Rxe5 {[%clk 0:00:38]} 28. Rxe5 {[%clk 0:00:33]}  Nxe5 {[%clk 0:00:35]} 29. Qxe5 {[%clk 0:00:34]}  c6 {[%clk 0:00:27]} 30. Nxf5 {[%clk 0:00:17]}  Re8 {[%clk 0:00:27]} 31. Nd6 {[%clk 0:00:17]}  Qc7 {[%clk 0:00:10]} 32. Qg3 {[%clk 0:00:17]}  Re1+ {[%clk 0:00:10]} 33. Kh2 {[%clk 0:00:18]}  Nxd3 {[%clk 0:00:06]} 34. Rxd3 {[%clk 0:00:15]}  Bxd3 {[%clk 0:00:07]} 35. Qxd3 {[%clk 0:00:14]}  c5 {[%clk 0:00:07]} 36. Qg3 {[%clk 0:00:11]}  Re6 {[%clk 0:00:06]} 37. Nf5 {[%clk 0:00:07]}  Qxg3+ {[%clk 0:00:06]} 38. Kxg3 {[%clk 0:00:07]}  Re4 {[%clk 0:00:06]} 39. Ne3 {[%clk 0:00:08]}  Rd4 {[%clk 0:00:06]} 40. Kf3 {[%clk 0:00:08]}  g6 {[%clk 0:00:06]} 41. Ke2 {[%clk 0:00:09]}  Kg7 {[%clk 0:00:07]} 42. Bb3 {[%clk 0:00:08]}  Kf6 {[%clk 0:00:06]} 43. Nc2 {[%clk 0:00:08]}  Rd6 {[%clk 0:00:06]} 44. Ke3 {[%clk 0:00:07]}  a5 {[%clk 0:00:06]} 45. Na3 {[%clk 0:00:06]}  Ke5 {[%clk 0:00:04]} 46. f4+ {[%clk 0:00:05]}  Kf6 {[%clk 0:00:04]} 47. Nb5 {[%clk 0:00:05]}  Re6+ {[%clk 0:00:05]} 48. Kd2 {[%clk 0:00:03]}  Re4 {[%clk 0:00:05]} 49. g3 {[%clk 0:00:03]}  g5 {[%clk 0:00:05]} 50. fxg5+ {[%clk 0:00:03]}  Kxg5 {[%clk 0:00:06]} 51. Nc3 {[%clk 0:00:03]}  Re7 {[%clk 0:00:07]} 52. Nd5 {[%clk 0:00:03]}  Rb7 {[%clk 0:00:07]} 53. Ba4 {[%clk 0:00:02]}  Rb2+ {[%clk 0:00:06]} 54. Ke3 {[%clk 0:00:01]}  Rg2 {[%clk 0:00:07]} 55. Kf3 {[%clk 0:00:01]}  Ra2 {[%clk 0:00:07]} 56. h4+ {[%clk 0:00:02]}  Kh6 {[%clk 0:00:07]} 57. Bb5 {[%clk 0:00:03]}  a4 {[%clk 0:00:07]} 58. Kf4 {[%clk 0:00:03]}  a3 {[%clk 0:00:07]} 59. g4 {[%clk 0:00:03]}  Rf2+ {[%clk 0:00:07]} 60. Kg3 {[%clk 0:00:03]}  a2 {[%clk 0:00:08]} 61. g5+ {[%clk 0:00:04]}  Kg7 {[%clk 0:00:08]} 62. Kxf2 {[%clk 0:00:04]}  a1=Q {[%clk 0:00:08]} 63. Kg3 {[%clk 0:00:04]}  Qe5+ {[%clk 0:00:08]} 64. Kg4 {[%clk 0:00:05]}  h6 {[%clk 0:00:08]} 65. Bd7 {[%clk 0:00:02]}  Qe2+ {[%clk 0:00:08]} 66. Kg3 {[%clk 0:00:02]}  hxg5 {[%clk 0:00:07]} 67. hxg5 {[%clk 0:00:02]}  Qxc4 {[%clk 0:00:07]} 68. Nf4 {[%clk 0:00:02]}  Qc3+ {[%clk 0:00:07]} 69. Kg4 {[%clk 0:00:02]}  Qe1 {[%clk 0:00:07]} 70. Ne6+ {[%clk 0:00:02]}  Kg8 {[%clk 0:00:07]} 71. Nf4 {[%clk 0:00:02]}  Qd1+ {[%clk 0:00:05]} 0-1


[Site "https://www.chess.com"]

[Event "Titled Tuesday Blitz February 21 Early 2023"]
[White "Shapiro, Viktor"]
[Black "Zemlyanskii, Ivan"]
[WhiteFideId "4175700"]
[BlackFideId "24249971"]
[WhiteElo "2192"]
[BlackElo "2300"]
[Result "0-1"]
[Round "03"]
[TimeControl "180+2"]
[Date "2023.02.21"]
[WhiteClock "0:00:06"]
[BlackClock "0:00:19"]

1. c4 {[%clk 0:03:00]}  Nc6 {[%clk 0:02:54]} 2. Nc3 {[%clk 0:03:01]}  e5 {[%clk 0:02:54]} 3. g3 {[%clk 0:03:01]}  Bb4 {[%clk 0:02:40]} 4. Bg2 {[%clk 0:03:01]}  Bxc3 {[%clk 0:02:41]} 5. bxc3 {[%clk 0:03:01]}  d6 {[%clk 0:02:41]} 6. d3 {[%clk 0:03:01]}  Nf6 {[%clk 0:02:34]} 7. f4 {[%clk 0:03:01]}  O-O {[%clk 0:02:32]} 8. Nf3 {[%clk 0:02:59]}  e4 {[%clk 0:02:31]} 9. Nd4 {[%clk 0:02:44]}  Re8 {[%clk 0:02:30]} 10. O-O {[%clk 0:02:42]}  Nxd4 {[%clk 0:02:13]} 11. cxd4 {[%clk 0:02:42]}  Bg4 {[%clk 0:02:14]} 12. Rf2 {[%clk 0:02:23]}  Qd7 {[%clk 0:02:11]} 13. Qc2 {[%clk 0:01:54]}  Bf5 {[%clk 0:02:06]} 14. dxe4 {[%clk 0:01:32]}  Nxe4 {[%clk 0:02:02]} 15. Bxe4 {[%clk 0:01:30]}  Bxe4 {[%clk 0:01:58]} 16. Qc3 {[%clk 0:01:30]}  d5 {[%clk 0:01:56]} 17. cxd5 {[%clk 0:01:06]}  Bxd5 {[%clk 0:01:53]} 18. f5 {[%clk 0:01:04]}  Bc6 {[%clk 0:01:48]} 19. Qc4 {[%clk 0:00:27]}  Re4 {[%clk 0:01:41]} 20. Bb2 {[%clk 0:00:25]}  Rae8 {[%clk 0:01:40]} 21. f6 {[%clk 0:00:15]}  Bd5 {[%clk 0:01:15]} 22. Qd3 {[%clk 0:00:14]}  Re3 {[%clk 0:01:05]} 23. Qf5 {[%clk 0:00:14]}  Qxf5 {[%clk 0:00:58]} 24. Rxf5 {[%clk 0:00:14]}  c6 {[%clk 0:00:59]} 25. Re5 {[%clk 0:00:13]}  R8xe5 {[%clk 0:00:52]} 26. dxe5 {[%clk 0:00:13]}  Rxe2 {[%clk 0:00:53]} 27. Bd4 {[%clk 0:00:13]}  Rg2+ {[%clk 0:00:51]} 28. Kf1 {[%clk 0:00:13]}  Rxh2 {[%clk 0:00:51]} 29. Re1 {[%clk 0:00:12]}  Rxa2 {[%clk 0:00:42]} 30. e6 {[%clk 0:00:12]}  Bxe6 {[%clk 0:00:38]} 31. fxg7 {[%clk 0:00:13]}  a5 {[%clk 0:00:29]} 32. Be5 {[%clk 0:00:09]}  Rd2 {[%clk 0:00:28]} 33. Ra1 {[%clk 0:00:07]}  Rd5 {[%clk 0:00:24]} 34. Bb2 {[%clk 0:00:06]}  f6 {[%clk 0:00:23]} 35. Kg1 {[%clk 0:00:05]}  Kxg7 {[%clk 0:00:23]} 36. Rf1 {[%clk 0:00:05]}  Rf5 {[%clk 0:00:22]} 37. Re1 {[%clk 0:00:04]}  Kf7 {[%clk 0:00:20]} 38. Rd1 {[%clk 0:00:03]}  Rb5 {[%clk 0:00:20]} 39. Bc3 {[%clk 0:00:02]}  Rb3 {[%clk 0:00:21]} 40. Bxa5 {[%clk 0:00:02]}  Rxg3+ {[%clk 0:00:20]} 41. Kf2 {[%clk 0:00:02]}  Rb3 {[%clk 0:00:21]} 42. Bd2 {[%clk 0:00:02]}  Rd3 {[%clk 0:00:21]} 43. Ke2 {[%clk 0:00:03]}  Bc4 {[%clk 0:00:20]} 44. Ke1 {[%clk 0:00:03]}  b5 {[%clk 0:00:20]} 45. Rc1 {[%clk 0:00:04]}  h5 {[%clk 0:00:21]} 46. Bc3 {[%clk 0:00:05]}  h4 {[%clk 0:00:21]} 47. Kf2 {[%clk 0:00:06]}  h3 {[%clk 0:00:21]} 48. Bb4 {[%clk 0:00:05]}  Bd5 {[%clk 0:00:21]} 49. Kg1 {[%clk 0:00:05]}  Rb3 {[%clk 0:00:19]} 50. Kh2 {[%clk 0:00:06]}  Rxb4 {[%clk 0:00:19]} 0-1


[Site "https://www.chess.com"]

[Event "Titled Tuesday Blitz February 21 Early 2023"]
[White "Ramirez Allo, Eduardo"]
[Black "Kukhmazov, Arsen"]
[WhiteFideId "2224178"]
[BlackFideId "24108260"]
[WhiteElo "2274"]
[BlackElo "2512"]
[Result "0-1"]
[Round "03"]
[TimeControl "180+2"]
[Date "2023.02.21"]
[WhiteClock "0:00:03"]
[BlackClock "0:00:29"]

1. Nf3 {[%clk 0:03:00]}  d5 {[%clk 0:02:56]} 2. c4 {[%clk 0:03:00]}  c6 {[%clk 0:02:56]} 3. d4 {[%clk 0:02:59]}  Nf6 {[%clk 0:02:57]} 4. Qc2 {[%clk 0:03:00]}  g6 {[%clk 0:02:56]} 5. cxd5 {[%clk 0:02:59]}  cxd5 {[%clk 0:02:56]} 6. Nc3 {[%clk 0:03:00]}  Bg7 {[%clk 0:02:53]} 7. Bf4 {[%clk 0:03:00]}  O-O {[%clk 0:02:52]} 8. e3 {[%clk 0:03:00]}  Nc6 {[%clk 0:02:48]} 9. Be2 {[%clk 0:03:00]}  Qb6 {[%clk 0:02:42]} 10. O-O {[%clk 0:02:51]}  Bf5 {[%clk 0:02:42]} 11. Qb3 {[%clk 0:02:39]}  Qxb3 {[%clk 0:02:42]} 12. axb3 {[%clk 0:02:39]}  Rfc8 {[%clk 0:02:42]} 13. Ne5 {[%clk 0:02:36]}  h6 {[%clk 0:02:34]} 14. h3 {[%clk 0:02:35]}  g5 {[%clk 0:02:33]} 15. Bg3 {[%clk 0:02:24]}  Bc2 {[%clk 0:02:32]} 16. Ra3 {[%clk 0:02:19]}  e6 {[%clk 0:02:30]} 17. Rc1 {[%clk 0:02:18]}  Bh7 {[%clk 0:02:23]} 18. Nxc6 {[%clk 0:01:54]}  Rxc6 {[%clk 0:02:24]} 19. Rca1 {[%clk 0:01:52]}  a6 {[%clk 0:02:24]} 20. Be5 {[%clk 0:01:51]}  Ne4 {[%clk 0:01:46]} 21. Bxg7 {[%clk 0:01:42]}  Kxg7 {[%clk 0:01:47]} 22. b4 {[%clk 0:01:06]}  Rac8 {[%clk 0:01:37]} 23. b5 {[%clk 0:00:45]}  axb5 {[%clk 0:01:14]} 24. Nxe4 {[%clk 0:00:41]}  Bxe4 {[%clk 0:01:03]} 25. f3 {[%clk 0:00:41]}  Bg6 {[%clk 0:00:53]} 26. Bxb5 {[%clk 0:00:33]}  Rb6 {[%clk 0:00:45]} 27. Rb3 {[%clk 0:00:23]}  Bc2 {[%clk 0:00:43]} 28. Rb4 {[%clk 0:00:22]}  Bd3 {[%clk 0:00:43]} 29. Ra5 {[%clk 0:00:20]}  Rc2 {[%clk 0:00:43]} 30. Kh2 {[%clk 0:00:18]}  Bf1 {[%clk 0:00:37]} 31. Bxf1 {[%clk 0:00:15]}  Rxb4 {[%clk 0:00:37]} 32. b3 {[%clk 0:00:07]}  Rxb3 {[%clk 0:00:36]} 33. e4 {[%clk 0:00:08]}  Rxf3 {[%clk 0:00:34]} 34. exd5 {[%clk 0:00:04]}  Rxf1 {[%clk 0:00:30]} 35. d6 {[%clk 0:00:04]}  Rc8 {[%clk 0:00:30]} 36. Ra7 {[%clk 0:00:03]}  Rb1 {[%clk 0:00:29]} 37. d7 {[%clk 0:00:03]}  Rd8 {[%clk 0:00:29]} 38. Rxb7 {[%clk 0:00:03]}  Rxb7 {[%clk 0:00:29]} 0-1


[Site "https://www.chess.com"]

[Event "Titled Tuesday Blitz February 21 Early 2023"]
[White "Silva, Pedro Gil Ferreira Da"]
[Black "Paravyan, David"]
[WhiteFideId "1946102"]
[BlackFideId "4194985"]
[WhiteElo "2227"]
[BlackElo "2601"]
[Result "0-1"]
[Round "03"]
[TimeControl "180+2"]
[Date "2023.02.21"]
[WhiteClock "0:01:42"]
[BlackClock "0:02:30"]

1. Nf3 {[%clk 0:03:00]}  Nf6 {[%clk 0:02:59]} 2. c4 {[%clk 0:02:57]}  c5 {[%clk 0:03:00]} 3. g3 {[%clk 0:02:57]}  d5 {[%clk 0:02:59]} 4. cxd5 {[%clk 0:02:56]}  Nxd5 {[%clk 0:03:00]} 5. Bg2 {[%clk 0:02:56]}  Nc6 {[%clk 0:03:00]} 6. O-O {[%clk 0:02:57]}  e5 {[%clk 0:03:00]} 7. Nc3 {[%clk 0:02:57]}  Be6 {[%clk 0:02:54]} 8. d3 {[%clk 0:02:58]}  Be7 {[%clk 0:02:53]} 9. Bd2 {[%clk 0:02:56]}  O-O {[%clk 0:02:52]} 10. Nxd5 {[%clk 0:02:56]}  Bxd5 {[%clk 0:02:52]} 11. Bc3 {[%clk 0:02:57]}  Qd6 {[%clk 0:02:50]} 12. Rc1 {[%clk 0:02:55]}  b5 {[%clk 0:02:48]} 13. a4 {[%clk 0:02:48]}  a6 {[%clk 0:02:46]} 14. Be1 {[%clk 0:02:28]}  Rfc8 {[%clk 0:02:42]} 15. Nd2 {[%clk 0:02:27]}  Bxg2 {[%clk 0:02:41]} 16. Kxg2 {[%clk 0:02:28]}  Qd5+ {[%clk 0:02:40]} 17. Kg1 {[%clk 0:02:27]}  Nd4 {[%clk 0:02:39]} 18. e3 {[%clk 0:02:22]}  Ne6 {[%clk 0:02:39]} 19. Qc2 {[%clk 0:02:19]}  Rd8 {[%clk 0:02:33]} 20. axb5 {[%clk 0:02:13]}  axb5 {[%clk 0:02:34]} 21. Ne4 {[%clk 0:01:49]}  Qxd3 {[%clk 0:02:33]} 22. Qxd3 {[%clk 0:01:49]}  Rxd3 {[%clk 0:02:34]} 23. Bc3 {[%clk 0:01:44]}  b4 {[%clk 0:02:30]} 24. Bxe5 {[%clk 0:01:42]}  f5 {[%clk 0:02:30]} 0-1


[Site "https://www.chess.com"]

[Event "Titled Tuesday Blitz February 21 Early 2023"]
[White "Hakobyan, Aram"]
[Black "Budisavljevic, Luka"]
[WhiteFideId "13306677"]
[BlackFideId "960047"]
[WhiteElo "2608"]
[BlackElo "2488"]
[Result "1-0"]
[Round "03"]
[TimeControl "180+2"]
[Date "2023.02.21"]
[WhiteClock "0:01:19"]
[BlackClock "0:00:10"]

1. e4 {[%clk 0:03:00]}  e6 {[%clk 0:02:59]} 2. d4 {[%clk 0:02:56]}  d5 {[%clk 0:03:00]} 3. Nc3 {[%clk 0:02:56]}  Nc6 {[%clk 0:03:00]} 4. Nf3 {[%clk 0:02:55]}  Nf6 {[%clk 0:03:00]} 5. Bd3 {[%clk 0:02:55]}  Nb4 {[%clk 0:02:58]} 6. e5 {[%clk 0:02:55]}  Nxd3+ {[%clk 0:02:54]} 7. Qxd3 {[%clk 0:02:56]}  Ng8 {[%clk 0:02:47]} 8. O-O {[%clk 0:02:56]}  h6 {[%clk 0:02:47]} 9. Ne2 {[%clk 0:02:53]}  b6 {[%clk 0:02:46]} 10. Ng3 {[%clk 0:02:50]}  a5 {[%clk 0:02:40]} 11. Re1 {[%clk 0:02:50]}  Ne7 {[%clk 0:02:37]} 12. b3 {[%clk 0:02:32]}  Nc6 {[%clk 0:02:32]} 13. c3 {[%clk 0:02:31]}  Qd7 {[%clk 0:02:26]} 14. h4 {[%clk 0:02:30]}  Ba6 {[%clk 0:02:14]} 15. Qc2 {[%clk 0:02:27]}  a4 {[%clk 0:02:14]} 16. h5 {[%clk 0:02:24]}  Na5 {[%clk 0:02:06]} 17. Be3 {[%clk 0:02:19]}  Be7 {[%clk 0:02:02]} 18. Nh2 {[%clk 0:02:01]}  Qb5 {[%clk 0:01:55]} 19. b4 {[%clk 0:02:01]}  Nc4 {[%clk 0:01:44]} 20. Bf4 {[%clk 0:01:59]}  a3 {[%clk 0:01:32]} 21. Ng4 {[%clk 0:01:57]}  Bb7 {[%clk 0:01:25]} 22. Bc1 {[%clk 0:01:47]}  Qa4 {[%clk 0:01:14]} 23. Qe2 {[%clk 0:01:39]}  c5 {[%clk 0:01:08]} 24. bxc5 {[%clk 0:01:39]}  bxc5 {[%clk 0:01:08]} 25. Ne3 {[%clk 0:01:37]}  Ba6 {[%clk 0:00:57]} 26. Qg4 {[%clk 0:01:37]}  Kf8 {[%clk 0:00:51]} 27. Rb1 {[%clk 0:01:33]}  Nxe3 {[%clk 0:00:46]} 28. Bxe3 {[%clk 0:01:33]}  cxd4 {[%clk 0:00:23]} 29. Bxd4 {[%clk 0:01:27]}  Bc4 {[%clk 0:00:20]} 30. Ra1 {[%clk 0:01:25]}  Rb8 {[%clk 0:00:17]} 31. f4 {[%clk 0:01:25]}  Kg8 {[%clk 0:00:17]} 32. f5 {[%clk 0:01:25]}  Kh7 {[%clk 0:00:11]} 33. fxe6 {[%clk 0:01:24]}  fxe6 {[%clk 0:00:12]} 34. Qg6+ {[%clk 0:01:24]}  Kg8 {[%clk 0:00:12]} 35. Qxe6+ {[%clk 0:01:25]}  Kf8 {[%clk 0:00:13]} 36. Nf5 {[%clk 0:01:22]}  Rb7 {[%clk 0:00:10]} 37. Qc8+ {[%clk 0:01:19]} 1-0


[Site "https://www.chess.com"]

[Event "Titled Tuesday Blitz February 21 Early 2023"]
[White "Navara, David"]
[Black "Skvortsov, Andrei"]
[WhiteFideId "309095"]
[BlackFideId "24108600"]
[WhiteElo "2678"]
[BlackElo "2313"]
[Result "0-1"]
[Round "03"]
[TimeControl "180+2"]
[Date "2023.02.21"]
[WhiteClock "0:00:01"]
[BlackClock "0:00:04"]

1. c4 {[%clk 0:03:00]}  Nf6 {[%clk 0:02:53]} 2. Nf3 {[%clk 0:03:00]}  e6 {[%clk 0:02:53]} 3. Nc3 {[%clk 0:03:00]}  d5 {[%clk 0:02:53]} 4. e3 {[%clk 0:03:01]}  c5 {[%clk 0:02:53]} 5. cxd5 {[%clk 0:02:54]}  Nxd5 {[%clk 0:02:54]} 6. Nxd5 {[%clk 0:02:49]}  exd5 {[%clk 0:02:52]} 7. b4 {[%clk 0:02:49]}  cxb4 {[%clk 0:02:43]} 8. Bb2 {[%clk 0:02:48]}  Nd7 {[%clk 0:02:40]} 9. Rc1 {[%clk 0:02:05]}  Nb6 {[%clk 0:02:29]} 10. Ne5 {[%clk 0:01:59]}  Bd6 {[%clk 0:02:22]} 11. Bb5+ {[%clk 0:01:51]}  Kf8 {[%clk 0:02:19]} 12. Qh5 {[%clk 0:01:34]}  Be6 {[%clk 0:02:15]} 13. O-O {[%clk 0:01:34]}  Kg8 {[%clk 0:02:06]} 14. f4 {[%clk 0:01:27]}  f6 {[%clk 0:02:04]} 15. f5 {[%clk 0:01:25]}  Bxe5 {[%clk 0:01:58]} 16. fxe6 {[%clk 0:01:25]}  g6 {[%clk 0:01:59]} 17. Bxe5 {[%clk 0:01:13]}  gxh5 {[%clk 0:01:55]} 18. Bxf6 {[%clk 0:00:51]}  Qd6 {[%clk 0:01:41]} 19. e7 {[%clk 0:00:51]}  h6 {[%clk 0:01:31]} 20. e8=Q+ {[%clk 0:00:30]}  Rxe8 {[%clk 0:01:29]} 21. Bxe8 {[%clk 0:00:31]}  Rh7 {[%clk 0:01:27]} 22. Rf3 {[%clk 0:00:31]}  Rc7 {[%clk 0:01:22]} 23. Rcf1 {[%clk 0:00:30]}  h4 {[%clk 0:01:08]} 24. Bxh4 {[%clk 0:00:25]}  Rg7 {[%clk 0:00:31]} 25. Bf6 {[%clk 0:00:25]}  Rg4 {[%clk 0:00:19]} 26. Bh5 {[%clk 0:00:12]}  Rg5 {[%clk 0:00:14]} 27. Bxg5 {[%clk 0:00:12]}  hxg5 {[%clk 0:00:13]} 28. Rf5 {[%clk 0:00:08]}  Qe7 {[%clk 0:00:13]} 29. Rf7 {[%clk 0:00:05]}  Qd6 {[%clk 0:00:11]} 30. Rxb7 {[%clk 0:00:05]}  d4 {[%clk 0:00:11]} 31. Bf7+ {[%clk 0:00:05]}  Kh8 {[%clk 0:00:11]} 32. Bb3 {[%clk 0:00:05]}  dxe3 {[%clk 0:00:09]} 33. dxe3 {[%clk 0:00:06]}  Qc5 {[%clk 0:00:09]} 34. Kh1 {[%clk 0:00:04]}  g4 {[%clk 0:00:08]} 35. h4 {[%clk 0:00:02]}  gxh3 {[%clk 0:00:08]} 36. Rf3 {[%clk 0:00:01]}  hxg2+ {[%clk 0:00:06]} 37. Kxg2 {[%clk 0:00:02]}  Qc6 {[%clk 0:00:05]} 38. Rxa7 {[%clk 0:00:01]}  Nc8 {[%clk 0:00:04]} 0-1


[Site "https://www.chess.com"]

[Event "Titled Tuesday Blitz February 21 Early 2023"]
[White "Anton Guijarro, David"]
[Black "Yurovskykh, Oleksandr"]
[WhiteFideId "2285525"]
[BlackFideId "14134020"]
[WhiteElo "2690"]
[BlackElo "2328"]
[Result "1-0"]
[Round "03"]
[TimeControl "180+2"]
[Date "2023.02.21"]
[WhiteClock "0:00:32"]
[BlackClock "0:00:11"]

1. e4 {[%clk 0:03:00]}  d5 {[%clk 0:03:00]} 2. exd5 {[%clk 0:03:00]}  Qxd5 {[%clk 0:03:01]} 3. Nc3 {[%clk 0:03:00]}  Qd8 {[%clk 0:03:00]} 4. d4 {[%clk 0:02:58]}  Nf6 {[%clk 0:03:00]} 5. Bc4 {[%clk 0:02:57]}  a6 {[%clk 0:03:00]} 6. Nf3 {[%clk 0:02:56]}  b5 {[%clk 0:03:00]} 7. Bb3 {[%clk 0:02:56]}  c5 {[%clk 0:03:00]} 8. dxc5 {[%clk 0:02:47]}  Qxd1+ {[%clk 0:03:01]} 9. Nxd1 {[%clk 0:02:43]}  e6 {[%clk 0:03:02]} 10. Be3 {[%clk 0:02:42]}  Nfd7 {[%clk 0:03:02]} 11. a4 {[%clk 0:02:40]}  b4 {[%clk 0:03:02]} 12. c3 {[%clk 0:02:35]}  Bxc5 {[%clk 0:02:51]} 13. O-O {[%clk 0:02:26]}  O-O {[%clk 0:02:40]} 14. cxb4 {[%clk 0:02:02]}  Bxb4 {[%clk 0:02:38]} 15. Rc1 {[%clk 0:02:02]}  a5 {[%clk 0:01:59]} 16. Nc3 {[%clk 0:01:48]}  Ba6 {[%clk 0:01:58]} 17. Nb5 {[%clk 0:01:42]}  Bxb5 {[%clk 0:01:44]} 18. axb5 {[%clk 0:01:41]}  Nf6 {[%clk 0:01:44]} 19. Ne5 {[%clk 0:01:35]}  Nbd7 {[%clk 0:01:41]} 20. Nc6 {[%clk 0:01:34]}  Nd5 {[%clk 0:00:45]} 21. Bxd5 {[%clk 0:01:32]}  exd5 {[%clk 0:00:46]} 22. Rfd1 {[%clk 0:01:30]}  Nf6 {[%clk 0:00:45]} 23. b6 {[%clk 0:00:52]}  Bd6 {[%clk 0:00:33]} 24. Bc5 {[%clk 0:00:45]}  Bxc5 {[%clk 0:00:31]} 25. Rxc5 {[%clk 0:00:46]}  Ra6 {[%clk 0:00:29]} 26. Rb5 {[%clk 0:00:46]}  Nd7 {[%clk 0:00:27]} 27. Ne7+ {[%clk 0:00:45]}  Kh8 {[%clk 0:00:26]} 28. b7 {[%clk 0:00:44]}  g6 {[%clk 0:00:17]} 29. Rbxd5 {[%clk 0:00:36]}  Nb8 {[%clk 0:00:11]} 30. Rd8 {[%clk 0:00:32]} 1-0


[Site "https://www.chess.com"]

[Event "Titled Tuesday Blitz February 21 Early 2023"]
[White "Narayanan, Srinath"]
[Black "Malyi, Viacheslav"]
[WhiteFideId "5018420"]
[BlackFideId "14123983"]
[WhiteElo "2559"]
[BlackElo "2391"]
[Result "1-0"]
[Round "03"]
[TimeControl "180+2"]
[Date "2023.02.21"]
[WhiteClock "0:00:35"]
[BlackClock "0:01:23"]

1. Nf3 {[%clk 0:02:55]}  Nf6 {[%clk 0:02:58]} 2. c4 {[%clk 0:02:52]}  c5 {[%clk 0:02:56]} 3. g3 {[%clk 0:02:52]}  g6 {[%clk 0:02:56]} 4. Bg2 {[%clk 0:02:52]}  Bg7 {[%clk 0:02:57]} 5. O-O {[%clk 0:02:53]}  O-O {[%clk 0:02:58]} 6. d4 {[%clk 0:02:54]}  cxd4 {[%clk 0:02:57]} 7. Nxd4 {[%clk 0:02:54]}  Nc6 {[%clk 0:02:58]} 8. Nc3 {[%clk 0:02:54]}  Nxd4 {[%clk 0:02:58]} 9. Qxd4 {[%clk 0:02:55]}  d6 {[%clk 0:02:59]} 10. Qd3 {[%clk 0:02:54]}  Qa5 {[%clk 0:02:56]} 11. h3 {[%clk 0:02:31]}  Be6 {[%clk 0:02:54]} 12. Bd2 {[%clk 0:02:26]}  Qa6 {[%clk 0:02:46]} 13. b3 {[%clk 0:02:25]}  Rfc8 {[%clk 0:02:41]} 14. Rac1 {[%clk 0:02:23]}  Rab8 {[%clk 0:02:41]} 15. a4 {[%clk 0:02:22]}  Qb6 {[%clk 0:02:40]} 16. Nb5 {[%clk 0:02:12]}  a6 {[%clk 0:02:36]} 17. a5 {[%clk 0:01:59]}  Qd8 {[%clk 0:02:32]} 18. Nd4 {[%clk 0:01:59]}  Bd7 {[%clk 0:02:26]} 19. Be3 {[%clk 0:01:44]}  Bc6 {[%clk 0:02:24]} 20. Nxc6 {[%clk 0:01:41]}  bxc6 {[%clk 0:02:24]} 21. Bb6 {[%clk 0:01:40]}  Qe8 {[%clk 0:02:20]} 22. c5 {[%clk 0:01:39]}  d5 {[%clk 0:01:58]} 23. Qxa6 {[%clk 0:01:36]}  Ra8 {[%clk 0:01:59]} 24. Qd3 {[%clk 0:01:34]}  Nd7 {[%clk 0:02:00]} 25. b4 {[%clk 0:01:33]}  Ne5 {[%clk 0:02:00]} 26. Qb3 {[%clk 0:01:32]}  Nc4 {[%clk 0:02:01]} 27. Rxc4 {[%clk 0:01:32]}  dxc4 {[%clk 0:02:02]} 28. Qxc4 {[%clk 0:01:33]}  Qd7 {[%clk 0:02:02]} 29. a6 {[%clk 0:01:30]}  Qd2 {[%clk 0:01:59]} 30. b5 {[%clk 0:01:21]}  cxb5 {[%clk 0:01:58]} 31. Qxb5 {[%clk 0:01:22]}  Qa2 {[%clk 0:01:32]} 32. Bxa8 {[%clk 0:01:12]}  Rxa8 {[%clk 0:01:33]} 33. a7 {[%clk 0:01:12]}  Bd4 {[%clk 0:01:33]} 34. Qd7 {[%clk 0:00:43]}  e5 {[%clk 0:01:24]} 35. Qb7 {[%clk 0:00:39]}  Rf8 {[%clk 0:01:23]} 36. e3 {[%clk 0:00:35]} 1-0


[Site "https://www.chess.com"]